[Event "FIDE Women GP Monaco 2019"]
[Site "Monaco"]
[Date "2019.12.06"]
[Round "4.3"]
[White "Paehtz, Elisabeth"]
[Black "Cramling, Pia"]
[Result "0-1"]
[ECO "B41"]
[WhiteElo "2475"]
[BlackElo "2461"]
[Annotator "ChessBase"]
[PlyCount "94"]
[EventDate "2019.12.03"]
[EventType "tourn"]
[EventCountry "MNC"]
[SourceTitle "playchess.com"]
[Source "ChessBase"]
[SourceQuality "1"]
[TimeControl "40/5400+30:1800+30"]

1. e4 {[%emt 0:00:00]} c5 {[%emt 0:00:00]} 2. Nf3 {[%emt 0:00:00]} e6 {[%emt 0:00:00]} 3. d4 {[%emt 0:00:00]} cxd4 {[%emt 0:00:00]} 4. Nxd4 {[%emt 0:00:00]} a6 {[%emt 0:00:00]} 5. c4 {[%emt 0:00:00]} Nf6 {[%emt 0:00:18]} 6. Nc3 {[%emt 0:00:00]} Bb4 {[%emt 0:00:19]} 7. Qf3 {[%emt 0:00:00]} d6 {[%emt 0:07:46]} 8. Nc2 {[%emt 0:01:17]} Bxc3+ {[%emt 0:03:14]} 9. Qxc3 {[%emt 0:22:10]} O-O {[%emt 0:00:21]} 10. Bd3 {[%emt 0:01:11]} e5 {[%emt 0:01:54]} 11. O-O {[%emt 0:01:20]} Be6 {[%emt 0:00:47]} 12. f4 {[%emt 0:19:14]} exf4 {[%emt 0:04:36]} 13. Bxf4 {[%emt 0:00:04]} Nc6 {[%emt 0:00:29]} 14. Rad1 {[%emt 0:09:52]} Ng4 {[%emt 0:34:49]} 15. Be2 {[%emt 0:13:32]} Qb6+ {[%emt 0:02:42]} 16. Ne3 {[%emt 0:00:07]} Nf6 {[%emt 0:11:16]} 17. Bf3 {[%emt 0:00:18]} Rfd8 {[%emt 0:09:19]} 18. Bxd6 {[%emt 0:05:26]} Bxc4 {[%emt 0:00:14]} 19. Qxc4 {[%emt 0:05:37]} Qxe3+ {[%emt 0:00:07]} 20. Kh1 {[%emt 0:00:02]} Re8 {[%emt 0:02:38]} 21. Rde1 {[%emt 0:07:01]} Qg5 {[%emt 0:01:25]} 22. e5 {[%emt 0:04:03]} Nxe5 {[%emt 0:00:12]} 23. Bxe5 {[%emt 0:01:22]} Rxe5 {[%emt 0:00:05]} 24. Rxe5 {[%emt 0:01:13]} Qxe5 {[%emt 0:00:05]} 25. Bxb7 {[%emt 0:00:02]} Rb8 {[%emt 0:06:06]} 26. Bxa6 {[%emt 0:03:46]} Rxb2 {[%emt 0:03:35]} 27. Bb7 {[%emt 0:03:47]} g6 {[%emt 0:02:06]} 28. a4 {[%emt 0:00:42]} Kg7 {[%emt 0:00:38]} 29. Bc6 {[%emt 0:00:57]} Rd2 {[%emt 0:01:27]} 30. Qb5 {[%emt 0:00:21]} Qd4 {[%emt 0:03:10]} 31. Bf3 {[%emt 0:00:32]} Rb2 {[%emt 0:00:34]} 32. Qa6 {[%emt 0:00:32]} Ra2 {[%emt 0:00:36]} 33. a5 {[%emt 0:01:12]} Qc3 {[%emt 0:00:30]} 34. Qb7 {[%emt 0:00:33]} Rxa5 {[%emt 0:00:19]} 35. h3 {[%emt 0:00:10]} h5 {[%emt 0:01:05]} 36. Qb1 {[%emt 0:00:11]} Ra4 {[%emt 0:01:31]} 37. Qc1 {[%emt 0:00:01]} Qe5 {[%emt 0:00:28]} 38. Re1 {[%emt 0:00:03]} Qd6 {[%emt 0:00:34]} 39. Rd1 {[%emt 0:00:28]} Qe5 {[%emt 0:00:13]} 40. Re1 {[%emt 0:00:02]} Qg3 {[%emt 0:01:35]} 41. Qe3 {[%emt 0:30:47]} Ra5 {[%emt 0:31:24]} 42. Bc6 {[%emt 0:01:21]} Qd6 {[%emt 0:01:32]} 43. Bf3 {[%emt 0:00:12]} Rf5 {[%emt 0:00:00]} 44. Kg1 {[%emt 0:00:00]} g5 {[%emt 0:00:00]} 45. Rd1 {[%emt 0:00:00]} Qg3 {[%emt 0:00:00]} 46. Qd3 {[%emt 0:00:00]} Re5 {[%emt 0:00:00]} 47. Bb7 {[%emt 0:00:00]} Re1+ {[%emt 0:00:00]} 0-1

[Event "FIDE Women GP Monaco 2019"]
[Site "Monaco"]
[Date "2019.12.06"]
[Round "4.4"]
[White "Zhao, Xue"]
[Black "Gunina, Valentina"]
[Result "1-0"]
[ECO "E11"]
[WhiteElo "2485"]
[BlackElo "2492"]
[Annotator "ChessBase"]
[PlyCount "79"]
[EventDate "2019.12.03"]
[EventType "tourn"]
[EventCountry "MNC"]
[SourceTitle "playchess.com"]
[Source "ChessBase"]
[SourceQuality "1"]
[TimeControl "40/5400+30:1800+30"]

1. d4 {[%emt 0:00:00]} Nf6 {[%emt 0:00:00]} 2. c4 {[%emt 0:00:00]} e6 {[%emt 0:00:00]} 3. Nf3 {[%emt 0:00:00]} Bb4+ {[%emt 0:00:00]} 4. Nbd2 {[%emt 0:00:00]} a5 {[%emt 0:00:00]} 5. a3 {[%emt 0:01:24]} Be7 {[%emt 0:00:23]} 6. e4 d5 7. e5 {[%emt 0:04:53]} Nfd7 {[%emt 0:00:44]} 8. Bd3 {[%emt 0:16:17]} c5 {[%emt 0:02:16]} 9. O-O {[%emt 0:03:39]} Nc6 {[%emt 0:06:50]} 10. Re1 {[%emt 0:01:41]} cxd4 {[%emt 0:28:11]} 11. cxd5 {[%emt 0:00:52]} Nc5 {[%emt 0:01:19]} 12. dxc6 {[%emt 0:00:33]} Nxd3 {[%emt 0:01:48]} 13. Re4 {[%emt 0:00:13]} Qc7 {[%emt 0:13:27]} 14. Nc4 {[%emt 0:08:12]} Nc5 {[%emt 0:03:17]} 15. Rxd4 {[%emt 0:06:30]} O-O {[%emt 0:02:06]} 16. Bg5 {[%emt 0:01:59]} bxc6 {[%emt 0:18:19]} 17. Bxe7 {[%emt 0:05:12]} Qxe7 {[%emt 0:00:02]} 18. Qc2 {[%emt 0:04:13]} f5 {[%emt 0:17:18]} 19. Nd6 {[%emt 0:05:27]} Ne4 {[%emt 0:01:49]} 20. Qxc6 {[%emt 0:04:59]} Rb8 {[%emt 0:00:59]} 21. Rc1 {[%emt 0:04:45]} Bb7 {[%emt 0:00:23]} 22. Nxb7 {[%emt 0:09:12]} Rxb7 {[%emt 0:00:01]} 23. h4 {[%emt 0:05:20]} h6 {[%emt 0:00:47]} 24. Rcd1 {[%emt 0:04:42]} Rxb2 {[%emt 0:00:32]} 25. Rd7 {[%emt 0:00:06]} Qe8 {[%emt 0:01:08]} 26. Qc7 {[%emt 0:01:10]} Qg6 {[%emt 0:00:23]} 27. Rd8 {[%emt 0:00:15]} Rxd8 {[%emt 0:00:54]} 28. Rxd8+ {[%emt 0:01:02]} Kh7 {[%emt 0:00:03]} 29. Qc8 {[%emt 0:00:10]} Qf7 {[%emt 0:00:44]} 30. Rf8 {[%emt 0:01:03]} Qe7 {[%emt 0:00:28]} 31. h5 {[%emt 0:00:30]} Rb1+ {[%emt 0:00:42]} 32. Kh2 {[%emt 0:00:05]} Qxf8 {[%emt 0:00:30]} 33. Qxf8 {[%emt 0:00:12]} Nxf2 {[%emt 0:00:04]} 34. Qe8 {[%emt 0:02:55]} Rh1+ {[%emt 0:00:57]} 35. Kg3 {[%emt 0:00:05]} Ne4+ {[%emt 0:00:12]} 36. Kf4 {[%emt 0:00:04]} Nc5 {[%emt 0:00:28]} 37. Qe7 {[%emt 0:02:27]} Rc1 {[%emt 0:00:44]} 38. Ke3 {[%emt 0:02:19]} Rc4 {[%emt 0:00:33]} 39. Nd4 {[%emt 0:02:02]} f4+ {[%emt 0:00:36]} 40. Ke2 {[%emt 0:01:59]} 1-0

[Event "FIDE Women GP Monaco 2019"]
[Site "Monaco"]
[Date "2019.12.06"]
[Round "4.5"]
[White "Harika, Dronavalli"]
[Black "Goryachkina, Aleksandra"]
[Result "0-1"]
[ECO "D45"]
[WhiteElo "2518"]
[BlackElo "2572"]
[Annotator "ChessBase"]
[PlyCount "110"]
[EventDate "2019.12.03"]
[EventType "tourn"]
[EventCountry "MNC"]
[SourceTitle "playchess.com"]
[Source "ChessBase"]
[SourceQuality "1"]
[TimeControl "40/5400+30:1800+30"]

1. Nf3 {[%emt 0:00:00]} d5 {[%emt 0:00:00]} 2. d4 {[%emt 0:00:00]} Nf6 {[%emt 0:00:00]} 3. c4 {[%emt 0:00:00]} c6 {[%emt 0:00:05]} 4. Nc3 {[%emt 0:00:00]} e6 {[%emt 0:00:49]} 5. e3 {[%emt 0:00:17]} Nbd7 {[%emt 0:00:36]} 6. Be2 {[%emt 0:00:33]} Bd6 {[%emt 0:01:33]} 7. O-O {[%emt 0:00:36]} O-O {[%emt 0:00:59]} 8. a4 {[%emt 0:00:31]} a5 {[%emt 0:07:40]} 9. Qc2 {[%emt 0:01:02]} Qe7 {[%emt 0:03:29]} 10. Rd1 {[%emt 0:00:55]} h6 {[%emt 0:02:24]} 11. h3 {[%emt 0:09:37]} Re8 {[%emt 0:03:55]} 12. e4 {[%emt 0:15:15]} Nxe4 {[%emt 0:02:53]} 13. Nxe4 {[%emt 0:00:05]} dxe4 {[%emt 0:00:06]} 14. Qxe4 {[%emt 0:00:03]} e5 {[%emt 0:07:55]} 15. dxe5 {[%emt 0:06:08]} Nxe5 {[%emt 0:03:52]} 16. Nxe5 {[%emt 0:00:52]} Qxe5 {[%emt 0:02:58]} 17. Qxe5 {[%emt 0:00:11]} Bxe5 {[%emt 0:00:05]} 18. Bd3 {[%emt 0:01:13]} Be6 {[%emt 0:05:36]} 19. Be3 {[%emt 0:01:56]} Red8 {[%emt 0:03:09]} 20. Rab1 {[%emt 0:03:08]} Kf8 {[%emt 0:09:04]} 21. b3 {[%emt 0:03:04]} Bd4 {[%emt 0:01:37]} 22. Kf1 {[%emt 0:01:43]} Bxe3 {[%emt 0:04:32]} 23. fxe3 {[%emt 0:01:58]} Rd7 {[%emt 0:01:50]} 24. Be2 {[%emt 0:03:48]} Rxd1+ {[%emt 0:04:31]} 25. Rxd1 {[%emt 0:00:27]} Ke7 {[%emt 0:00:22]} 26. Ke1 {[%emt 0:02:55]} Rd8 {[%emt 0:03:46]} 27. Rb1 {[%emt 0:11:01]} c5 {[%emt 0:03:59]} 28. Rc1 {[%emt 0:00:21]} Kf6 {[%emt 0:01:11]} 29. Rc3 {[%emt 0:00:37]} Ke5 {[%emt 0:01:48]} 30. Bf3 {[%emt 0:00:31]} Rd7 {[%emt 0:01:09]} 31. Ke2 {[%emt 0:01:26]} Bf5 {[%emt 0:02:03]} 32. h4 {[%emt 0:02:26]} Be4 {[%emt 0:05:24]} 33. Rc1 {[%emt 0:00:37]} Rd3 {[%emt 0:04:00]} 34. Rf1 {[%emt 0:00:39]} g5 {[%emt 0:03:06]} 35. Bxe4 {[%emt 0:13:40]} Kxe4 {[%emt 0:00:05]} 36. Rxf7 {[%emt 0:00:04]} Rxe3+ {[%emt 0:00:14]} 37. Kf2 {[%emt 0:01:14]} Rxb3 {[%emt 0:00:12]} 38. Rf6 {[%emt 0:02:28]} gxh4 {[%emt 0:04:26]} 39. Rxh6 {[%emt 0:00:24]} Rb2+ {[%emt 0:00:36]} 40. Kg1 {[%emt 0:00:14]} Kd3 {[%emt 0:01:28]} 41. Rxh4 {[%emt 0:30:02]} Rb4 {[%emt 0:30:13]} 42. g4 {[%emt 0:03:41]} Rxc4 {[%emt 0:03:17]} 43. Rh3+ {[%emt 0:00:14]} Ke4 {[%emt 0:00:39]} 44. Rg3 {[%emt 0:01:01]} Kf4 {[%emt 0:00:14]} 45. Kh2 {[%emt 0:00:12]} Kg5 {[%emt 0:00:10]} 46. Kh3 {[%emt 0:00:57]} Rxa4 {[%emt 0:00:57]} 47. Re3 {[%emt 0:00:43]} Rxg4 {[%emt 0:03:00]} 48. Re5+ {[%emt 0:00:15]} Kf6 {[%emt 0:00:07]} 49. Rxc5 {[%emt 0:00:02]} Rg5 {[%emt 0:00:12]} 50. Rc7 {[%emt 0:00:09]} Rb5 {[%emt 0:00:24]} 51. Kg4 {[%emt 0:00:04]} a4 {[%emt 0:00:45]} 52. Kf4 {[%emt 0:00:04]} Rb3 {[%emt 0:00:00]} 53. Ke4 {[%emt 0:00:00]} a3 {[%emt 0:00:00]} 54. Rc1 {[%emt 0:00:00]} b5 {[%emt 0:00:00]} 55. Kd4 {[%emt 0:00:00]} b4 {[%emt 0:00:00]} 0-1

[Event "FIDE Women GP Monaco 2019"]
[Site "Monaco"]
[Date "2019.12.06"]
[Round "4.6"]
[White "Kosteniuk, Alexandra"]
[Black "Muzychuk, Mariya"]
[Result "1/2-1/2"]
[ECO "B10"]
[WhiteElo "2483"]
[BlackElo "2559"]
[Annotator "ChessBase"]
[PlyCount "46"]
[EventDate "2019.12.03"]
[EventType "tourn"]
[EventCountry "MNC"]
[SourceTitle "playchess.com"]
[Source "ChessBase"]
[SourceQuality "1"]
[TimeControl "40/5400+30:1800+30"]

1. e4 {[%emt 0:00:00]} c6 {[%emt 0:00:00]} 2. Nc3 {[%emt 0:00:00]} d5 {[%emt 0:00:00]} 3. Nf3 {[%emt 0:00:00]} dxe4 {[%emt 0:00:11]} 4. Nxe4 {[%emt 0:00:00]} Nf6 {[%emt 0:00:14]} 5. Qe2 {[%emt 0:00:06]} Nxe4 {[%emt 0:00:18]} 6. Qxe4 {[%emt 0:00:05]} Nd7 {[%emt 0:00:25]} 7. Bc4 {[%emt 0:00:43]} Nf6 {[%emt 0:02:28]} 8. Ne5 {[%emt 0:00:27]} e6 {[%emt 0:00:11]} 9. Qe2 {[%emt 0:00:21]} b5 {[%emt 0:03:51]} 10. Bb3 {[%emt 0:06:50]} Qc7 {[%emt 0:00:32]} 11. d4 {[%emt 0:00:34]} Bd6 {[%emt 0:04:48]} 12. a4 {[%emt 0:15:01]} b4 {[%emt 0:05:32]} 13. O-O {[%emt 0:09:23]} O-O {[%emt 0:00:27]} 14. Re1 {[%emt 0:04:46]} a5 {[%emt 0:11:07]} 15. Qf3 {[%emt 0:09:19]} Bb7 {[%emt 0:03:02]} 16. Qg3 {[%emt 0:06:03]} Nd5 {[%emt 0:06:17]} 17. Qh4 {[%emt 0:05:50]} c5 {[%emt 0:02:09]} 18. Bc4 {[%emt 0:11:02]} Be7 {[%emt 0:07:58]} 19. Qg4 {[%emt 0:04:01]} Nf6 {[%emt 0:03:28]} 20. Qg3 {[%emt 0:02:13]} Ne4 {[%emt 0:18:19]} 21. Qg4 {[%emt 0:02:11]} Nf6 {[%emt 0:03:44]} 22. Qg3 {[%emt 0:00:05]} Ne4 {[%emt 0:01:18]} 23. Qg4 {[%emt 0:00:25]} Nf6 {[%emt 0:00:28]} 1/2-1/2

[Event "FIDE Women GP Monaco 2019"]
[Site "Monaco"]
[Date "2019.12.07"]
[Round "5.1"]
[White "Cramling, Pia"]
[Black "Dzagnidze, Nana"]
[Result "1/2-1/2"]
[ECO "D39"]
[WhiteElo "2461"]
[BlackElo "2520"]
[Annotator "ChessBase"]
[PlyCount "64"]
[EventDate "2019.12.03"]
[EventType "tourn"]
[EventCountry "MNC"]
[SourceTitle "playchess.com"]
[Source "ChessBase"]
[SourceQuality "1"]
[TimeControl "40/5400+30:1800+30"]

1. Nf3 {[%emt 0:00:00]} Nf6 {[%emt 0:00:00]} 2. c4 {[%emt 0:00:00]} e6 {[%emt 0:00:06]} 3. d4 {[%emt 0:00:07]} d5 {[%emt 0:00:06]} 4. Bg5 {[%emt 0:00:51]} Bb4+ {[%emt 0:00:16]} 5. Nc3 {[%emt 0:00:12]} dxc4 {[%emt 0:00:22]} 6. e4 {[%emt 0:00:20]} h6 {[%emt 0:01:07]} 7. Bxf6 {[%emt 0:01:11]} Qxf6 {[%emt 0:00:02]} 8. Bxc4 {[%emt 0:00:32]} c5 {[%emt 0:00:20]} 9. O-O {[%emt 0:09:00]} cxd4 {[%emt 0:02:25]} 10. Nb5 {[%emt 0:09:16]} Qe7 {[%emt 0:00:05]} 11. Qxd4 {[%emt 0:00:37]} O-O {[%emt 0:00:07]} 12. Nxa7 {[%emt 0:00:17]} Bc5 {[%emt 0:01:36]} 13. Nxc8 {[%emt 0:00:05]} Rxc8 {[%emt 0:00:02]} 14. Qd3 {[%emt 0:04:39]} Nc6 {[%emt 0:00:11]} 15. Rad1 {[%emt 0:02:28]} Qf6 {[%emt 0:09:14]} 16. Qe2 {[%emt 0:04:37]} Nd4 {[%emt 0:13:25]} 17. Nxd4 {[%emt 0:00:12]} Bxd4 {[%emt 0:00:01]} 18. Rd2 {[%emt 0:02:22]} Rd8 {[%emt 0:09:52]} 19. g3 {[%emt 0:08:17]} Bb6 {[%emt 0:03:07]} 20. Rfd1 {[%emt 0:01:04]} Rxd2 {[%emt 0:00:27]} 21. Rxd2 {[%emt 0:00:09]} Rd8 {[%emt 0:00:02]} 22. Rxd8+ {[%emt 0:04:09]} Qxd8 {[%emt 0:00:09]} 23. Kg2 {[%emt 0:00:57]} g5 {[%emt 0:08:22]} 24. b3 {[%emt 0:00:49]} Qd4 {[%emt 0:00:46]} 25. Qe3 {[%emt 0:06:32]} Qxe3 {[%emt 0:02:37]} 26. fxe3 {[%emt 0:00:03]} Bxe3 {[%emt 0:00:21]} 27. Kf3 {[%emt 0:00:16]} Bd4 {[%emt 0:01:00]} 28. Kg4 {[%emt 0:01:10]} Kg7 {[%emt 0:00:14]} 29. h4 {[%emt 0:00:34]} gxh4 {[%emt 0:00:15]} 30. Kxh4 {[%emt 0:00:43]} Kf6 {[%emt 0:00:15]} 31. Kg4 {[%emt 0:00:11]} Ke5 {[%emt 0:00:26]} 32. Kf3 {[%emt 0:00:07]} Bc5 {[%emt 0:00:25]} 1/2-1/2

[Event "FIDE Women GP Monaco 2019"]
[Site "Monaco"]
[Date "2019.12.07"]
[Round "5.2"]
[White "Goryachkina, Aleksandra"]
[Black "Paehtz, Elisabeth"]
[Result "1/2-1/2"]
[ECO "B07"]
[WhiteElo "2572"]
[BlackElo "2475"]
[Annotator "ChessBase"]
[PlyCount "129"]
[EventDate "2019.12.03"]
[EventType "tourn"]
[EventCountry "MNC"]
[SourceTitle "playchess.com"]
[Source "ChessBase"]
[SourceQuality "1"]
[TimeControl "40/5400+30:1800+30"]

1. d4 {[%emt 0:00:00]} d6 {[%emt 0:00:00]} 2. e4 {[%emt 0:00:23]} Nf6 {[%emt 0:00:00]} 3. Nc3 {[%emt 0:01:25]} g6 {[%emt 0:00:00]} 4. Be3 {[%emt 0:01:27]} a6 {[%emt 0:00:00]} 5. Nf3 {[%emt 0:01:13]} Bg7 {[%emt 0:00:00]} 6. Qd2 {[%emt 0:01:44]} O-O {[%emt 0:00:03]} 7. Bh6 {[%emt 0:04:54]} b5 {[%emt 0:00:05]} 8. Bd3 {[%emt 0:01:39]} Nc6 {[%emt 0:01:08]} 9. Bxg7 {[%emt 0:04:25]} Kxg7 {[%emt 0:00:03]} 10. e5 {[%emt 0:00:30]} dxe5 {[%emt 0:00:30]} 11. dxe5 {[%emt 0:00:30]} Ng4 {[%emt 0:00:05]} 12. O-O-O {[%emt 0:00:22]} b4 {[%emt 0:00:02]} 13. Rhe1 {[%emt 0:02:43]} Rb8 {[%emt 0:00:03]} 14. Na4 {[%emt 0:07:25]} Qd5 {[%emt 0:00:10]} 15. b3 {[%emt 0:03:33]} Ncxe5 {[%emt 0:07:03]} 16. Nxe5 {[%emt 0:01:02]} Nxe5 {[%emt 0:00:03]} 17. Bf1 {[%emt 0:01:09]} Qxd2+ {[%emt 0:01:14]} 18. Rxd2 {[%emt 0:00:07]} Nc6 {[%emt 0:05:35]} 19. Rd5 {[%emt 0:00:27]} e6 {[%emt 0:06:37]} 20. Rc5 {[%emt 0:00:32]} Bb7 {[%emt 0:15:41]} 21. f3 {[%emt 0:11:42]} Ne7 {[%emt 0:13:39]} 22. Rxc7 {[%emt 0:03:28]} Nd5 {[%emt 0:00:05]} 23. Rc5 {[%emt 0:04:13]} Rfc8 {[%emt 0:03:20]} 24. Bc4 {[%emt 0:05:44]} Rxc5 {[%emt 0:09:05]} 25. Nxc5 {[%emt 0:00:06]} Nc3 {[%emt 0:00:34]} 26. Kb2 {[%emt 0:04:58]} a5 {[%emt 0:00:39]} 27. a3 {[%emt 0:00:38]} Nd5 {[%emt 0:04:37]} 28. axb4 {[%emt 0:06:00]} axb4 {[%emt 0:00:04]} 29. Ra1 {[%emt 0:09:29]} Ne3 {[%emt 0:00:09]} 30. Ra7 {[%emt 0:01:11]} Bd5 {[%emt 0:01:21]} 31. Nxe6+ {[%emt 0:03:57]} Kf6 {[%emt 0:00:05]} 32. Nc5 {[%emt 0:00:59]} Rd8 {[%emt 0:02:48]} 33. Ne4+ {[%emt 0:05:57]} Ke6 {[%emt 0:04:59]} 34. Ng5+ {[%emt 0:02:41]} Kf6 {[%emt 0:02:54]} 35. Nxh7+ {[%emt 0:03:56]} Kf5 {[%emt 0:08:50]} 36. g4+ {[%emt 0:04:20]} Kf4 {[%emt 0:01:06]} 37. Bxd5 {[%emt 0:00:24]} Nxd5 {[%emt 0:00:05]} 38. Rxf7+ {[%emt 0:00:29]} Ke3 {[%emt 0:00:11]} 39. Ng5 {[%emt 0:01:04]} Ke2 {[%emt 0:02:37]} 40. Rb7 {[%emt 0:01:36]} Ra8 {[%emt 0:04:21]} 41. Ne4 {[%emt 0:10:12]} Kxf3 {[%emt 0:02:29]} 42. Nf6 {[%emt 0:01:22]} Nxf6 {[%emt 0:08:45]} 43. Rf7 {[%emt 0:00:06]} Kxg4 {[%emt 0:00:02]} 44. Rxf6 {[%emt 0:00:06]} g5 {[%emt 0:00:07]} 45. c3 {[%emt 0:01:47]} bxc3+ {[%emt 0:01:47]} 46. Kxc3 {[%emt 0:00:02]} Rc8+ {[%emt 0:01:11]} 47. Kb2 {[%emt 0:01:38]} Rb8 {[%emt 0:00:12]} 48. Rf2 {[%emt 0:03:10]} Kh3 {[%emt 0:17:02]} 49. Kc3 {[%emt 0:00:12]} Rc8+ {[%emt 0:00:04]} 50. Kd4 {[%emt 0:00:19]} Rd8+ {[%emt 0:00:07]} 51. Kc5 {[%emt 0:03:12]} Rc8+ {[%emt 0:00:11]} 52. Kd5 {[%emt 0:02:23]} Rd8+ {[%emt 0:01:39]} 53. Kc6 {[%emt 0:00:10]} Rc8+ {[%emt 0:00:55]} 54. Kd7 {[%emt 0:00:13]} Rb8 {[%emt 0:02:08]} 55. Rb2 {[%emt 0:00:28]} Rxb3 {[%emt 0:02:12]} 56. Rxb3+ {[%emt 0:00:05]} Kxh2 {[%emt 0:00:02]} 57. Rb8 {[%emt 0:12:49]} g4 {[%emt 0:00:06]} 58. Rh8+ {[%emt 0:00:07]} Kg2 {[%emt 0:00:09]} 59. Ke6 {[%emt 0:00:55]} g3 {[%emt 0:00:06]} 60. Ke5 {[%emt 0:00:29]} Kf2 {[%emt 0:00:31]} 61. Rf8+ {[%emt 0:00:10]} Ke3 {[%emt 0:02:29]} 62. Rg8 {[%emt 0:00:47]} Kf2 {[%emt 0:00:03]} 63. Kf4 {[%emt 0:00:18]} g2 {[%emt 0:00:04]} 64. Rxg2+ {[%emt 0:00:12]} Kxg2 {[%emt 0:00:05]} 65. Ke4 1/2-1/2

[Event "FIDE Women GP Monaco 2019"]
[Site "Monaco"]
[Date "2019.12.07"]
[Round "5.3"]
[White "Gunina, Valentina"]
[Black "Harika, Dronavalli"]
[Result "0-1"]
[ECO "D45"]
[WhiteElo "2492"]
[BlackElo "2518"]
[Annotator "ChessBase"]
[PlyCount "60"]
[EventDate "2019.12.03"]
[EventType "tourn"]
[EventCountry "MNC"]
[SourceTitle "playchess.com"]
[Source "ChessBase"]
[SourceQuality "1"]
[TimeControl "40/5400+30:1800+30"]

1. d4 {[%emt 0:00:00]} d5 {[%emt 0:00:00]} 2. c4 {[%emt 0:00:00]} e6 {[%emt 0:00:00]} 3. Nf3 {[%emt 0:00:39]} Nf6 {[%emt 0:00:00]} 4. Nc3 {[%emt 0:00:18]} c6 {[%emt 0:00:00]} 5. e3 {[%emt 0:02:05]} Nbd7 {[%emt 0:00:50]} 6. Qc2 {[%emt 0:00:05]} Bd6 {[%emt 0:00:20]} 7. g4 {[%emt 0:00:23]} Nxg4 {[%emt 0:00:34]} 8. Rg1 {[%emt 0:00:28]} Qf6 {[%emt 0:00:41]} 9. Rxg4 {[%emt 0:01:54]} Qxf3 {[%emt 0:00:07]} 10. Rxg7 {[%emt 0:00:19]} Nf6 {[%emt 0:00:49]} 11. Rg5 {[%emt 0:03:11]} Qh1 {[%emt 0:02:20]} 12. f4 {[%emt 0:16:58]} Bd7 {[%emt 0:04:10]} 13. Bd2 {[%emt 0:09:50]} Qxh2 {[%emt 0:08:49]} 14. O-O-O {[%emt 0:01:30]} Rg8 {[%emt 0:02:06]} 15. Rxg8+ {[%emt 0:16:00]} Nxg8 {[%emt 0:00:40]} 16. f5 {[%emt 0:00:03]} Nf6 {[%emt 0:07:54]} 17. e4 dxe4 {[%emt 0:05:37]} 18. Nxe4 {[%emt 0:10:12]} Nxe4 {[%emt 0:00:54]} 19. Qxe4 {[%emt 0:00:02]} O-O-O {[%emt 0:00:20]} 20. fxe6 {[%emt 0:10:28]} fxe6 {[%emt 0:06:36]} 21. c5 {[%emt 0:04:17]} Bc7 {[%emt 0:01:36]} 22. Bc4 {[%emt 0:00:03]} Qh3 {[%emt 0:07:52]} 23. Rh1 {[%emt 0:02:07]} Qf5 {[%emt 0:00:30]} 24. Qxf5 {[%emt 0:05:39]} exf5 {[%emt 0:03:48]} 25. Bg5 {[%emt 0:01:42]} Rh8 {[%emt 0:00:18]} 26. Bf6 {[%emt 0:07:28]} Rf8 {[%emt 0:02:18]} 27. Be7 {[%emt 0:00:56]} Rh8 {[%emt 0:00:04]} 28. Bf6 {[%emt 0:02:12]} Rf8 {[%emt 0:04:48]} 29. Bg7 {[%emt 0:00:16]} Re8 {[%emt 0:03:17]} 30. Rxh7 {[%emt 0:01:10]} f4 {[%emt 0:00:33]} 0-1

[Event "FIDE Women GP Monaco 2019"]
[Site "Monaco"]
[Date "2019.12.07"]
[Round "5.4"]
[White "Muzychuk, Mariya"]
[Black "Zhao, Xue"]
[Result "1/2-1/2"]
[ECO "B31"]
[WhiteElo "2559"]
[BlackElo "2485"]
[Annotator "ChessBase"]
[PlyCount "88"]
[EventDate "2019.12.03"]
[EventType "tourn"]
[EventCountry "MNC"]
[SourceTitle "playchess.com"]
[Source "ChessBase"]
[SourceQuality "1"]
[TimeControl "40/5400+30:1800+30"]

1. e4 {[%emt 0:00:00]} c5 {[%emt 0:00:00]} 2. Nf3 {[%emt 0:00:00]} Nc6 {[%emt 0:00:00]} 3. Bb5 {[%emt 0:00:00]} g6 {[%emt 0:00:21]} 4. Bxc6 {[%emt 0:00:32]} dxc6 {[%emt 0:00:20]} 5. d3 {[%emt 0:00:43]} Bg7 {[%emt 0:02:19]} 6. h3 {[%emt 0:00:12]} Qc7 {[%emt 0:02:43]} 7. Nc3 {[%emt 0:03:17]} e5 {[%emt 0:01:41]} 8. Be3 {[%emt 0:06:00]} b6 {[%emt 0:00:50]} 9. Qd2 {[%emt 0:00:17]} f5 {[%emt 0:02:39]} 10. g3 {[%emt 0:06:29]} Ne7 {[%emt 0:06:40]} 11. O-O-O {[%emt 0:08:08]} O-O {[%emt 0:08:49]} 12. exf5 {[%emt 0:01:24]} Nxf5 {[%emt 0:02:23]} 13. Ng5 {[%emt 0:03:59]} h6 {[%emt 0:01:58]} 14. Nge4 {[%emt 0:00:22]} Kh7 {[%emt 0:01:37]} 15. Rdf1 {[%emt 0:11:13]} Be6 {[%emt 0:03:52]} 16. h4 {[%emt 0:05:35]} Rae8 {[%emt 0:20:21]} 17. b3 {[%emt 0:05:20]} a5 {[%emt 0:03:53]} 18. f3 {[%emt 0:03:13]} Bd5 {[%emt 0:06:42]} 19. a4 {[%emt 0:21:08]} Nd4 {[%emt 0:02:25]} 20. Qd1 {[%emt 0:03:01]} Rd8 {[%emt 0:09:28]} 21. f4 {[%emt 0:03:36]} Nf5 {[%emt 0:07:03]} 22. Bd2 {[%emt 0:00:54]} Qe7 {[%emt 0:08:10]} 23. h5 {[%emt 0:02:42]} c4 {[%emt 0:00:40]} 24. hxg6+ {[%emt 0:00:06]} Kg8 {[%emt 0:00:16]} 25. Kb1 {[%emt 0:04:37]} cxd3 {[%emt 0:00:54]} 26. cxd3 {[%emt 0:00:16]} Bxe4 {[%emt 0:01:55]} 27. Nxe4 {[%emt 0:00:11]} exf4 {[%emt 0:02:18]} 28. Rxf4 {[%emt 0:02:22]} Nxg3 {[%emt 0:02:24]} 29. Rf7 {[%emt 0:05:37]} Rxf7 {[%emt 0:01:07]} 30. gxf7+ {[%emt 0:00:04]} Qxf7 {[%emt 0:00:24]} 31. Nxg3 {[%emt 0:02:20]} Rxd3 {[%emt 0:00:04]} 32. Ne4 {[%emt 0:00:52]} Rxb3+ {[%emt 0:00:28]} 33. Kc1 {[%emt 0:00:02]} Ra3 {[%emt 0:01:05]} 34. Bc3 {[%emt 0:01:17]} Rxc3+ {[%emt 0:00:37]} 35. Nxc3 {[%emt 0:00:05]} Qc4 {[%emt 0:00:27]} 36. Rh3 {[%emt 0:00:29]} Bxc3 {[%emt 0:00:16]} 37. Qd8+ {[%emt 0:01:07]} Kh7 {[%emt 0:00:27]} 38. Qd3+ {[%emt 0:00:18]} Qxd3 {[%emt 0:00:04]} 39. Rxd3 Bb4 {[%emt 0:00:47]} 40. Rd7+ {[%emt 0:00:17]} Kg6 {[%emt 0:00:07]} 41. Rc7 {[%emt 0:30:02]} Bc5 {[%emt 0:31:24]} 42. Rxc6+ Kg5 {[%emt 0:00:27]} 43. Kd2 {[%emt 0:02:45]} h5 {[%emt 0:00:00]} 44. Ke2 {[%emt 0:00:00]} Kg4 {[%emt 0:00:00]} 1/2-1/2